fUSD/lending_fUSD_20250107
["ID","MTS","AMOUNT","RATE_DAILY","PERIOD"]
[348023283,1736268671967,-500.0,0.00010691,2]
[348023284,1736268671977,-500.0,0.00010691,2]
[348023285,1736268671989,-615.53,0.00010691,2]
[348023286,1736268671999,-500.0,0.00010691,2]
[348023287,1736268672009,-274.51720023,0.00010691,2]
[348023288,1736268672019,-500.0,0.00010691,2]
[348023289,1736268672029,-590.64,0.00010691,2]
[348023290,1736268672039,-500.0,0.00010691,2]
[348023291,1736268672049,-500.0,0.00010691,2]
[348023292,1736268672059,-585.59,0.00010691,2]
[348023293,1736268672069,-500.0,0.00010691,2]
[348023294,1736268672079,-646.69,0.00010691,2]
[348023295,1736268672089,-500.0,0.00010691,2]
[348023296,1736268672099,-500.0,0.00010691,2]
[348023297,1736268672108,-6800.0,0.000109,3]
[348023298,1736268672119,-771.243,0.00010923,2]
[348023299,1736268672129,-268.435,0.00010923,2]
[348023300,1736268672140,-1860.0,0.00010923,2]
[348023301,1736268672150,-1254.471,0.00010923,2]
[348023302,1736268672159,-819.0,0.00010923,2]
[348023303,1736268672169,-179.759,0.00010923,2]
[348023304,1736268672179,-1173.0,0.00010923,2]
[348023305,1736268672187,-9619.0,0.00010923,2]
[348023306,1736268672198,-1348.069,0.00010923,2]
[348023307,1736268672208,-150.0,0.00010923,2]
[348023308,1736268672218,-500.0,0.00010955,2]
[348023309,1736268672228,-500.0,0.00010955,2]
[348023310,1736268672241,-251.018806,0.00010956,2]
[348023311,1736268672251,-1127.29,0.00010956,2]
[348023312,1736268672261,-1080.32,0.00010956,2]
[348023313,1736268672271,-2140.99,0.00010956,2]
[348023314,1736268672281,-1743.43,0.00010956,2]
[348023315,1736268672291,-500.0,0.00010956,2]
[348023316,1736268672301,-4639.5,0.00010956,2]
[348023317,1736268672311,-3610.9,0.00010956,2]
[348023318,1736268672321,-734.32,0.00010956,2]
[348023319,1736268672331,-500.0,0.00010956,2]
[348023320,1736268672340,-500.0,0.00010956,2]
[348023321,1736268672350,-612.11,0.00010956,2]
[348023322,1736268672360,-500.0,0.00010956,2]
[348023323,1736268672369,-1544.38,0.00010956,2]
[348023324,1736268672379,-850.81,0.00010956,2]
[348023325,1736268672389,-500.0,0.00010956,2]
[348023326,1736268672399,-500.0,0.00010956,2]
[348023327,1736268672409,-662.0,0.00010956,2]
[348023328,1736268672419,-747.67,0.00010956,2]
[348023329,1736268672429,-500.0,0.00010956,2]
[348023330,1736268672440,-772.19,0.00010956,2]
[348023331,1736268672450,-588.87,0.00010956,2]
[348023332,1736268672460,-2961.16,0.00010956,2]
[348023333,1736268672470,-590.95,0.00010956,2]
[348023334,1736268672480,-774.32,0.00010956,2]
[348023335,1736268672495,-655.07,0.00010956,2]
[348023336,1736268672505,-500.0,0.00010956,2]
[348023337,1736268672515,-506.74,0.00010956,2]
[348023338,1736268672525,-958.33,0.00010956,2]
[348023339,1736268672535,-500.0,0.00010956,2]
[348023340,1736268672546,-956.06,0.00010956,2]
[348023341,1736268672559,-503.25,0.00010956,2]
[348023342,1736268672570,-939.96,0.00010956,2]
[348023343,1736268672580,-500.0,0.00010956,2]
[348023344,1736268672590,-1092.85,0.00010956,2]
[348023345,1736268672600,-500.0,0.00010956,2]
[348023346,1736268672611,-1214.95,0.00010956,2]
[348023347,1736268672622,-500.0,0.00010956,2]
[348023348,1736268672634,-500.0,0.00010956,2]
[348023349,1736268672644,-623.76,0.00010956,2]
[348023350,1736268672654,-1114.33,0.00010956,2]
[348023351,1736268672663,-500.0,0.00010956,2]
[348023352,1736268672674,-679.63,0.00010956,2]
[348023353,1736268672684,-527.31,0.00010956,2]
[348023354,1736268672694,-1307.24,0.00010956,2]
[348023355,1736268672704,-859.28,0.00010956,2]
[348023356,1736268672715,-1688.86,0.00010956,2]
[348023357,1736268672725,-2597.12,0.00010956,2]
[348023358,1736268672738,-2164.26,0.00010956,2]
[348023359,1736268672749,-917.21,0.00010956,2]
[348023360,1736268672762,-1267.48,0.00010956,2]
[348023361,1736268672773,-5884.97,0.00010956,2]
[348023362,1736268672783,-1401.08,0.00010956,2]
[348023363,1736268672793,-1512.74,0.00010956,2]
[348023364,1736268672805,-886.66,0.00010957,2]
[348023365,1736268672815,-2097.97,0.00010957,2]
[348023366,1736268672826,-500.0,0.00010957,2]
[348023367,1736268672836,-1311.27,0.00010957,2]
[348023368,1736268672846,-1111.46,0.00010957,2]
[348023369,1736268672856,-531.84,0.00010957,2]
[348023370,1736268672866,-2273.0,0.00010957,2]
[348023371,1736268672876,-1028.58,0.00010957,2]
[348023372,1736268672886,-1591.44,0.00010957,2]
[348023373,1736268672897,-997.13,0.00010957,2]
[348023374,1736268672907,-2714.28,0.00010957,2]
[348023375,1736268672918,-1972.55,0.00010957,2]
[348023376,1736268672928,-1358.6,0.00010958,2]
[348023377,1736268672939,-500.0,0.00010963,2]
[348023378,1736268672949,-1321.84,0.00010963,2]
[348023379,1736268672959,-817.02,0.00010963,2]
[348023380,1736268672970,-556.07,0.00010964,2]
[348023381,1736268672980,-850.62,0.00010964,2]
[348023382,1736268672992,-500.0,0.00010964,2]
[348023383,1736268673003,-500.0,0.00010964,2]
[348023384,1736268673014,-590.0,0.00010964,2]
[348023385,1736268673024,-500.0,0.00010964,2]
[348023386,1736268673035,-733.92,0.00010964,2]
[348023387,1736268673045,-836.91,0.00010964,2]
[348023388,1736268673055,-722.53,0.00010964,2]
[348023389,1736268673066,-500.0,0.00010964,2]
[348023390,1736268673076,-897.94,0.00010964,2]
[348023391,1736268673086,-500.0,0.00010964,2]
[348023392,1736268673096,-500.0,0.00010964,2]
[348023393,1736268673106,-500.0,0.00010964,2]
[348023394,1736268673117,-500.0,0.00010964,2]
[348023395,1736268673127,-500.0,0.00010964,2]
[348023396,1736268673138,-797.59,0.00010964,2]
[348023397,1736268673148,-593.4,0.00010964,2]
[348023398,1736268673158,-500.0,0.00010964,2]
[348023399,1736268673168,-500.0,0.00010964,2]
[348023400,1736268673178,-500.0,0.00010964,2]
[348023401,1736268673188,-910.72,0.00010964,2]
[348023402,1736268673198,-519.37,0.00010964,2]
[348023403,1736268673208,-812.74,0.00010964,2]
[348023404,1736268673218,-500.0,0.00010964,2]
[348023405,1736268673228,-531.28,0.00010964,2]
[348023406,1736268673240,-500.0,0.00010964,2]
[348023407,1736268673250,-528.34,0.00010964,2]
[348023408,1736268673261,-1325.98,0.00010964,2]
[348023409,1736268673272,-826.1,0.00010964,2]
[348023410,1736268673282,-500.0,0.00010964,2]
[348023411,1736268673292,-500.0,0.00010964,2]
[348023412,1736268673302,-582.94,0.00010964,2]
[348023413,1736268673312,-960.33,0.00010964,2]
[348023414,1736268673322,-749.9,0.00010964,2]
[348023415,1736268673333,-500.0,0.00010964,2]
[348023416,1736268673343,-824.34,0.00010964,2]
[348023417,1736268673353,-500.0,0.00010964,2]
[348023418,1736268673363,-557.29,0.00010964,2]
[348023419,1736268673374,-1090.09,0.00010964,2]
[348023420,1736268673385,-663.62,0.00010964,2]
[348023421,1736268673395,-557.55,0.00010964,2]
[348023422,1736268673407,-500.0,0.00010964,2]
[348023423,1736268673417,-500.0,0.00010964,2]
[348023424,1736268673428,-500.0,0.00010964,2]
[348023425,1736268673437,-1547.89,0.00010964,2]
[348023426,1736268673447,-500.0,0.00010964,2]
[348023427,1736268673458,-913.99,0.00010964,2]
[348023428,1736268673468,-500.0,0.00010964,2]
[348023429,1736268673478,-500.0,0.00010964,2]
[348023430,1736268673491,-582.8,0.00010964,2]
[348023431,1736268673502,-500.0,0.00010964,2]
[348023432,1736268673513,-735.69,0.00010964,2]
[348023433,1736268673523,-500.0,0.00010964,2]
[348023434,1736268673534,-548.74,0.00010964,2]
[348023435,1736268673545,-567.82,0.00010964,2]
[348023436,1736268673556,-609.14,0.00010964,2]
[348023437,1736268673569,-853.91,0.00010964,2]
[348023438,1736268673580,-500.0,0.00010964,2]
[348023439,1736268673591,-500.0,0.00010964,2]
[348023440,1736268673602,-553.12,0.00010964,2]
[348023441,1736268673612,-863.2,0.00010964,2]
[348023442,1736268673624,-1230.46,0.00010964,2]
[348023443,1736268673821,-531.05,0.00010964,2]
[348023444,1736268673832,-500.0,0.00010964,2]
[348023445,1736268673842,-500.0,0.00010964,2]
[348023446,1736268673852,-500.0,0.00010964,2]
[348023447,1736268673863,-773.27,0.00010964,2]
[348023448,1736268673873,-831.05,0.00010964,2]
[348023449,1736268673883,-2392.33,0.00010964,2]
[348023450,1736268673893,-514.77,0.00010964,2]
[348023451,1736268673903,-912.02,0.00010964,2]
[348023452,1736268673913,-1029.27,0.00010964,2]
[348023453,1736268673923,-1494.48,0.00010964,2]
[348023454,1736268673933,-153.07836662,0.00010964,2]
[348023455,1736268673943,-500.0,0.00010964,2]
[348023456,1736268673954,-1004.88,0.00010964,2]
[348023457,1736268673964,-858.75,0.00010964,2]
[348023458,1736268673974,-2127.93,0.00010964,2]
[348023459,1736268673985,-1358.1,0.00010964,2]
[348023460,1736268673994,-2342.11,0.00010964,2]
[348023461,1736268674004,-539.24,0.00010964,2]
[348023462,1736268674014,-609.78,0.00010964,2]
[348023463,1736268674025,-1333.64,0.00010964,2]
[348023464,1736268674035,-2822.03,0.00010964,2]
[348023465,1736268674044,-602.54,0.00010964,2]
[348023466,1736268674055,-1190.44,0.00010964,2]
[348023467,1736268674065,-500.0,0.00010964,2]
[348023468,1736268674074,-793.26,0.00010964,2]
[348023469,1736268674084,-1051.54,0.00010964,2]
[348023470,1736268674094,-1546.56,0.00010964,2]
[348023471,1736268674104,-722.34,0.00010964,2]
[348023472,1736268674115,-1149.51,0.00010964,2]
[348023473,1736268674125,-1887.44,0.00010964,2]
[348023474,1736268674135,-865.45,0.00010964,2]
[348023475,1736268674145,-500.0,0.00010964,2]
[348023476,1736268674156,-807.88,0.00010964,2]
[348023477,1736268674167,-910.92,0.00010964,2]
[348023478,1736268674178,-500.0,0.00010964,2]
[348023479,1736268674189,-500.0,0.00010964,2]
[348023480,1736268674200,-1777.29,0.00010964,2]
[348023481,1736268674210,-500.0,0.00010964,2]
[348023482,1736268674219,-5860.4,0.00010964,2]
[348023483,1736268674230,-500.0,0.00010964,2]
[348023484,1736268674244,-757.84,0.00010964,2]
[348023485,1736268674253,-706.99,0.00010964,2]
[348023486,1736268674263,-500.0,0.00010964,2]
[348023487,1736268674273,-1001.12,0.00010964,2]
[348023488,1736268674283,-218.463418,0.00010964,2]
[348023489,1736268674293,-2561.02,0.00010964,2]
[348023490,1736268674302,-500.0,0.00010964,2]
[348023491,1736268674312,-1084.58,0.00010964,2]
[348023492,1736268674322,-4263.82,0.00010964,2]
[348023493,1736268674331,-1460.17,0.00010964,2]
[348023494,1736268674342,-500.0,0.00010964,2]
[348023495,1736268674352,-233.574732,0.00010964,2]
[348023496,1736268674362,-1616.76,0.00010964,2]
[348023497,1736268674373,-291.44722858,0.00010964,2]
[348023498,1736268674383,-2923.63,0.00010964,2]
[348023499,1736268674394,-1003.09,0.00010964,2]
[348023500,1736268674404,-942.56,0.00010964,2]
[348023501,1736268674413,-592.62,0.00010964,2]
[348023502,1736268674423,-500.0,0.00010964,2]
[348023503,1736268674432,-2206.35,0.00010964,2]
[348023504,1736268674443,-1217.32,0.00010964,2]
[348023505,1736268674454,-500.0,0.00010964,2]
[348023506,1736268674463,-4714.17,0.00010964,2]
[348023507,1736268674474,-4374.14,0.00010964,2]
[348023508,1736268674486,-500.0,0.00010964,2]
[348023509,1736268674496,-779.65,0.00010964,2]
[348023510,1736268674506,-544.8,0.00010964,2]
[348023511,1736268674517,-2901.84,0.00010964,2]
[348023512,1736268674527,-794.55,0.00010964,2]
[348023513,1736268674537,-884.2,0.00010964,2]
[348023514,1736268674548,-2312.21,0.00010964,2]
[348023515,1736268674561,-500.0,0.00010964,2]
[348023516,1736268674571,-1059.63,0.00010964,2]
[348023517,1736268674582,-779.93,0.00010964,2]
[348023518,1736268674592,-500.0,0.00010964,2]
[348023519,1736268674603,-500.0,0.00010964,2]
[348023520,1736268674614,-500.0,0.00010964,2]
[348023521,1736268674625,-604.36,0.00010964,2]
[348023522,1736268674635,-1153.17,0.00010964,2]
[348023523,1736268674646,-1870.96,0.00010964,2]
[348023524,1736268674656,-559.47,0.00010964,2]
[348023525,1736268674666,-782.74,0.00010964,2]
[348023526,1736268674677,-500.0,0.00010964,2]
[348023527,1736268674686,-595.86,0.00010964,2]
[348023528,1736268674697,-1083.61,0.00010964,2]
[348023529,1736268674707,-500.0,0.00010964,2]
[348023530,1736268674717,-1115.91,0.00010964,2]
[348023531,1736268674727,-715.2,0.00010964,2]
[348023532,1736268674740,-500.0,0.00010964,2]
[348023533,1736268674749,-818.1,0.00010964,2]
[348023534,1736268674762,-500.0,0.00010964,2]
[348023535,1736268674772,-500.0,0.00010965,2]
[348023536,1736268674782,-500.0,0.00010965,2]
[348023537,1736268674792,-500.0,0.00010965,2]
[348023538,1736268674802,-500.0,0.00010965,2]
[348023539,1736268674812,-500.0,0.00010965,2]
[348023540,1736268674821,-500.0,0.00010965,2]
[348023541,1736268674831,-533.91,0.00010965,2]
[348023542,1736268674841,-500.0,0.00010965,2]
[348023543,1736268674851,-500.0,0.00010965,2]
[348023544,1736268674861,-500.0,0.00010965,2]
[348023545,1736268674870,-500.0,0.00010965,2]
[348023546,1736268674880,-409.36397911,0.00010965,2]
[348023547,1736268674890,-500.0,0.00010965,2]
[348023548,1736268674899,-500.0,0.00010965,2]
[348023549,1736268674909,-500.0,0.00010965,2]
[348023550,1736268674919,-500.0,0.00010965,2]
[348023551,1736268674928,-500.0,0.00010965,2]
[348023552,1736268674939,-500.0,0.00010965,2]
[348023553,1736268674949,-500.0,0.00010965,2]
[348023554,1736268674960,-500.0,0.00010965,2]
[348023555,1736268674970,-538.96,0.00010965,2]
[348023556,1736268674980,-500.0,0.00010965,2]
[348023557,1736268674996,-500.0,0.00010965,2]
[348023558,1736268675006,-500.0,0.00010965,2]
[348023559,1736268675016,-500.0,0.00010965,2]
[348023560,1736268675026,-500.0,0.00010965,2]
[348023561,1736268675036,-845.74,0.00010965,2]
[348023562,1736268675045,-500.0,0.00010965,2]
[348023563,1736268675055,-332.26924207,0.00010965,2]
[348023564,1736268675066,-500.0,0.00010965,2]
[348023565,1736268675075,-500.0,0.00010965,2]
[348023566,1736268675085,-592.86,0.00010965,2]
[348023567,1736268675095,-500.0,0.00010965,2]
[348023568,1736268675105,-600.81,0.00010965,2]
[348023569,1736268675115,-500.0,0.00010965,2]
[348023570,1736268675124,-500.0,0.00010965,2]
[348023571,1736268675134,-519.72,0.00010965,2]
[348023572,1736268675144,-500.0,0.00010965,2]
[348023573,1736268675154,-819.07,0.00010965,2]
[348023574,1736268675164,-500.0,0.00010965,2]
[348023575,1736268675174,-518.34,0.00010965,2]
[348023576,1736268675185,-616.88,0.00010965,2]
[348023577,1736268675195,-500.0,0.00010965,2]
[348023578,1736268675205,-500.0,0.00010965,2]
[348023579,1736268675215,-500.0,0.00010965,2]
[348023580,1736268675225,-500.0,0.00010965,2]
[348023581,1736268675235,-500.0,0.00010965,2]
[348023582,1736268675245,-500.0,0.00010965,2]
[348023583,1736268675255,-500.0,0.00010965,2]
[348023584,1736268675265,-500.0,0.00010965,2]
[348023585,1736268675274,-500.0,0.00010965,2]
[348023586,1736268675284,-500.0,0.00010965,2]
[348023587,1736268675294,-500.0,0.00010965,2]
[348023588,1736268675303,-500.0,0.00010965,2]
[348023589,1736268675313,-500.0,0.00010965,2]
[348023590,1736268675323,-870.58,0.00010965,2]
[348023591,1736268675333,-687.56,0.00010965,2]
[348023592,1736268675343,-500.0,0.00010965,2]
[348023593,1736268675353,-791.82,0.00010965,2]
[348023594,1736268675364,-500.0,0.00010965,2]
[348023595,1736268675373,-500.0,0.00010965,2]
[348023596,1736268675383,-500.0,0.00010965,2]
[348023597,1736268675393,-500.0,0.00010965,2]
[348023598,1736268675403,-500.0,0.00010965,2]
[348023599,1736268675413,-927.26,0.00010965,2]
[348023600,1736268675422,-558.34,0.00010965,2]
[348023601,1736268675432,-500.0,0.00010965,2]
[348023602,1736268675441,-500.0,0.00010965,2]
[348023603,1736268675451,-655.3,0.00010965,2]
[348023604,1736268675461,-557.31,0.00010965,2]
[348023605,1736268675472,-656.36,0.00010965,2]
[348023606,1736268675481,-500.0,0.00010965,2]
[348023607,1736268675492,-918.28,0.00010965,2]
[348023608,1736268675502,-582.18,0.00010965,2]
[348023609,1736268675512,-500.0,0.00010965,2]
[348023610,1736268675521,-685.99,0.00010965,2]
[348023611,1736268675531,-500.0,0.00010965,2]
[348023612,1736268675541,-583.44,0.00010965,2]
[348023613,1736268675554,-500.0,0.00010965,2]
[348023614,1736268675563,-641.46,0.00010965,2]
[348023615,1736268675574,-612.42,0.00010965,2]
[348023616,1736268675584,-500.0,0.00010965,2]
[348023617,1736268675595,-520.7,0.00010965,2]
[348023618,1736268675605,-500.0,0.00010965,2]
[348023619,1736268675615,-500.0,0.00010965,2]
[348023620,1736268675626,-500.0,0.00010965,2]
[348023621,1736268675635,-500.0,0.00010965,2]
[348023622,1736268675644,-505.14,0.00010965,2]
[348023623,1736268675655,-500.0,0.00010965,2]
[348023624,1736268675666,-500.0,0.00010965,2]
[348023625,1736268675676,-735.13,0.00010965,2]
[348023626,1736268675686,-500.0,0.00010965,2]
[348023627,1736268675695,-512.9,0.00010965,2]
[348023628,1736268675705,-500.0,0.00010965,2]
[348023629,1736268675716,-500.0,0.00010965,2]
[348023630,1736268675725,-500.0,0.00010965,2]
[348023631,1736268675735,-500.0,0.00010965,2]
[348023632,1736268675745,-500.0,0.00010965,2]
[348023633,1736268675755,-500.0,0.00010965,2]
[348023634,1736268675766,-597.15,0.00010965,2]
[348023635,1736268675777,-921.38,0.00010965,2]
[348023636,1736268675788,-496.12122768,0.00010965,2]
[348023637,1736268675798,-604.16689592,0.00010965,2]
[348023638,1736268675809,-851.41,0.00010965,2]
[348023639,1736268675819,-500.0,0.00010965,2]
[348023640,1736268675830,-500.0,0.00010965,2]
[348023641,1736268675841,-500.0,0.00010965,2]
[348023642,1736268675851,-500.0,0.00010965,2]
[348023643,1736268675860,-500.0,0.00010965,2]
[348023644,1736268675871,-500.0,0.00010965,2]
[348023645,1736268675882,-500.0,0.00010965,2]
[348023646,1736268675892,-500.0,0.00010965,2]
[348023647,1736268675902,-538.02,0.00010965,2]
[348023648,1736268675913,-526.88,0.00010965,2]
[348023649,1736268675923,-969.14,0.00010965,2]
[348023650,1736268675933,-500.0,0.00010965,2]
[348023651,1736268675943,-850.4,0.00010965,2]
[348023652,1736268675953,-500.0,0.00010965,2]
[348023653,1736268675963,-500.0,0.00010965,2]
[348023654,1736268675972,-500.0,0.00010965,2]
[348023655,1736268675982,-500.0,0.00010965,2]
[348023656,1736268675998,-1025.87,0.00010965,2]
[348023657,1736268676008,-877.47,0.00010965,2]
[348023658,1736268676018,-500.0,0.00010965,2]
[348023659,1736268676027,-500.0,0.00010965,2]
[348023660,1736268676037,-615.53,0.00010965,2]
[348023661,1736268676047,-500.0,0.00010965,2]
[348023662,1736268676056,-500.0,0.00010965,2]
[348023663,1736268676066,-590.64,0.00010965,2]
[348023664,1736268676076,-500.0,0.00010965,2]
[348023665,1736268676086,-500.0,0.00010965,2]
[348023666,1736268676095,-585.59,0.00010965,2]
[348023667,1736268676105,-500.0,0.00010965,2]
[348023668,1736268676115,-646.69,0.00010965,2]
[348023669,1736268676124,-500.0,0.00010965,2]
[348023670,1736268676134,-500.0,0.00010965,2]
[348023671,1736268676143,-550.0,0.00011,2]
[348023672,1736268676153,-615.39,0.0001106,2]
[348023673,1736268676163,-1500.0,0.00011089,2]
[348023674,1736268676173,-500.0,0.00011229,2]
[348023675,1736268676182,-500.0,0.00011229,2]
[348023676,1736268676192,-506.02,0.00011229,2]
[348023677,1736268676201,-1127.29,0.0001123,2]
[348023678,1736268676210,-1080.32,0.0001123,2]
[348023679,1736268676283,-2140.99,0.0001123,2]
[348023680,1736268676293,-1743.43,0.0001123,2]
[348023681,1736268676302,-500.0,0.0001123,2]
[348023682,1736268676311,-4639.5,0.0001123,2]
[348023683,1736268676320,-3610.9,0.0001123,2]
[348023684,1736268676329,-734.32,0.0001123,2]
[348023685,1736268676338,-500.0,0.0001123,2]
[348023686,1736268676347,-500.0,0.0001123,2]
[348023687,1736268676357,-612.11,0.0001123,2]
[348023688,1736268676367,-500.0,0.0001123,2]
[348023689,1736268676376,-1544.38,0.0001123,2]
[348023690,1736268676385,-850.81,0.0001123,2]
[348023691,1736268676395,-500.0,0.0001123,2]
[348023692,1736268676404,-500.0,0.0001123,2]
[348023693,1736268676413,-662.0,0.0001123,2]
[348023694,1736268676423,-747.67,0.0001123,2]
[348023695,1736268676432,-500.0,0.0001123,2]
[348023696,1736268676442,-772.19,0.0001123,2]
[348023697,1736268676451,-588.87,0.0001123,2]
[348023698,1736268676461,-2961.16,0.0001123,2]
[348023699,1736268676470,-590.95,0.0001123,2]
[348023700,1736268676480,-774.32,0.0001123,2]
[348023701,1736268676493,-655.07,0.0001123,2]
[348023702,1736268676502,-500.0,0.0001123,2]
[348023703,1736268676511,-506.74,0.0001123,2]
[348023704,1736268676521,-958.33,0.0001123,2]
[348023705,1736268676529,-500.0,0.0001123,2]
[348023706,1736268676539,-956.06,0.0001123,2]
[348023707,1736268676548,-503.25,0.0001123,2]
[348023708,1736268676561,-939.96,0.0001123,2]
[348023709,1736268676570,-500.0,0.0001123,2]
[348023710,1736268676579,-1092.85,0.0001123,2]
[348023711,1736268676588,-500.0,0.0001123,2]
[348023712,1736268676598,-1214.95,0.0001123,2]
[348023713,1736268676608,-500.0,0.0001123,2]
[348023714,1736268676617,-557.65555024,0.0001123,2]
[348023715,1736268676628,-623.76,0.0001123,2]
[348023716,1736268676638,-1114.33,0.0001123,2]
[348023717,1736268676649,-500.0,0.0001123,2]
[348023718,1736268676660,-679.63,0.0001123,2]
[348023719,1736268676670,-527.31,0.0001123,2]
[348023720,1736268676679,-1307.24,0.0001123,2]
[348023721,1736268676688,-859.28,0.0001123,2]
[348023722,1736268676698,-1688.86,0.0001123,2]
[348023723,1736268676707,-2597.12,0.0001123,2]
[348023724,1736268676716,-2164.26,0.0001123,2]
[348023725,1736268676726,-917.21,0.0001123,2]
[348023726,1736268676736,-1267.48,0.0001123,2]
[348023727,1736268676746,-5884.97,0.0001123,2]
[348023728,1736268676755,-1401.08,0.0001123,2]
[348023729,1736268676765,-1512.74,0.0001123,2]
[348023730,1736268676777,-886.66,0.00011231,2]
[348023731,1736268676787,-2097.97,0.00011231,2]
[348023732,1736268676796,-500.0,0.00011231,2]
[348023733,1736268676805,-1311.27,0.00011231,2]
[348023734,1736268676815,-1111.46,0.00011231,2]
[348023735,1736268676824,-531.84,0.00011231,2]
[348023736,1736268676834,-2273.0,0.00011231,2]
[348023737,1736268676843,-1028.58,0.00011231,2]
[348023738,1736268676853,-1591.44,0.00011231,2]
[348023739,1736268676862,-997.13,0.00011231,2]
[348023740,1736268676872,-2714.28,0.00011231,2]
[348023741,1736268676882,-1972.55,0.00011231,2]
[348023742,1736268676892,-500.0,0.00011234,2]
[348023743,1736268676902,-500.0,0.00011237,2]
[348023744,1736268676912,-500.0,0.00011237,2]
[348023745,1736268676921,-1321.84,0.00011237,2]
[348023746,1736268676930,-817.02,0.00011237,2]
[348023747,1736268676940,-556.07,0.00011238,2]
[348023748,1736268676949,-850.62,0.00011238,2]
[348023749,1736268676958,-500.0,0.00011238,2]
[348023750,1736268676967,-500.0,0.00011238,2]
[348023751,1736268676977,-590.0,0.00011238,2]
[348023752,1736268676987,-500.0,0.00011238,2]
[348023753,1736268676997,-733.92,0.00011238,2]
[348023754,1736268677007,-836.91,0.00011238,2]
[348023755,1736268677016,-722.53,0.00011238,2]
[348023756,1736268677025,-500.0,0.00011238,2]
[348023757,1736268677035,-897.94,0.00011238,2]
[348023758,1736268677044,-500.0,0.00011238,2]
[348023759,1736268677053,-500.0,0.00011238,2]
[348023760,1736268677062,-500.0,0.00011238,2]
[348023761,1736268677072,-500.0,0.00011238,2]
[348023762,1736268677082,-500.0,0.00011238,2]
[348023763,1736268677091,-797.59,0.00011238,2]
[348023764,1736268677100,-593.4,0.00011238,2]
[348023765,1736268677109,-604.88062367,0.00011238,2]
[348023766,1736268677118,-500.0,0.00011238,2]
[348023767,1736268677129,-500.0,0.00011238,2]
[348023768,1736268677139,-910.72,0.00011238,2]
[348023769,1736268677149,-519.37,0.00011238,2]
[348023770,1736268677159,-812.74,0.00011238,2]
[348023771,1736268677168,-500.0,0.00011238,2]
[348023772,1736268677177,-531.28,0.00011238,2]
[348023773,1736268677186,-500.0,0.00011238,2]
[348023774,1736268677195,-528.34,0.00011238,2]
[348023775,1736268677204,-1325.98,0.00011238,2]
[348023776,1736268677215,-826.1,0.00011238,2]
[348023777,1736268677225,-500.0,0.00011238,2]
[348023778,1736268677234,-500.0,0.00011238,2]
[348023779,1736268677244,-582.94,0.00011238,2]
[348023780,1736268677254,-960.33,0.00011238,2]
[348023781,1736268677263,-749.9,0.00011238,2]
[348023782,1736268677273,-500.0,0.00011238,2]